{"text_format":"3","workbook":"xlsx","n_sheets":1,"sheets":["Schools"],"not_rendered":{"comments":1},"read":"whole","date_system":"1900"}

{"sheet":"Schools","index":0,"n_rows":570,"n_cols":7,"rows_kept":570,"merged":[[0,0,0,6],[141,0,141,3],[142,0,142,6],[230,0,230,3],[231,0,231,6],[299,0,299,3],[300,0,300,6],[341,0,341,3],[342,0,342,6],[569,0,569,3]]}
["IsiNdebele (Nkangala District)"]
["No","Official_Institution_Name","StreetAddress","Language Double medium schools Language","Gr  1 Teachers","Gr 2  Teachers","Gr 3 Teachers"]
[1,"ANDISA PRIMARY SCHOOL","320 MABUYENI SECTION, SIYABUSWA, SIYABUSWA, 472","Isindebele",1,1,1]
[{"$f":"A3+1","v":2},"BAMBANANI PRIMARY SCHOOL","STAND 247, TWEEFONTIEN J, KWAMHLANGA, 1022","Isindebele",2,2,2]
[{"$f":"A4+1","v":3},"Batlagae","Stand No 442, Doornkop, Middelburg, 1050","Isindebele",2,2,2]
[4,"BAWOKUHLE PRIMARY SCHOOL","559 GEMSBOKSPRUIT, KWAGGAFONTEIN, KWAGGAFONTEIN , 458","Isindebele",3,3,3]
[5,"BEKEZELA PRIMARY SCHOOL","TIRISANO STREET 298, MAPHOTLA, SIYABUSWA, 472","Isindebele",2,2,2]
[6,"BHEKIMFUNDO PRIMARY SCHOOL","1926 VLAKLAAGTE NO 1, , VLAKLAAGTE , 458","Isindebele",3,3,3]
[7,"BONGANI PRIMARY SCHOOL","1339, BONGANI, KWAMHLANGA, 1022","Isindebele",3,3,3]
[8,"BOROLO PRIMARY SCHOOL","0028 MAJAKANENG, , SIYABUSWA, 472","Isindebele",1,1,1]
[9,"BUHLEBEMFUNDO PRIMARY SCHOOL","1471 'B', , DENNILTON, 1030","Isindebele",2,2,2]
[10,"BUTHELELANI PRIMARY SCHOOL","STAND NO 444, MADLAYEDWA, MADLAYEDWA, 460","Isindebele",2,2,2]
[11,"CHIEF LUTHULI PRIMARY SCHOOL","179 EXTENTION 1, LUTHULI VILLAGE, KWAMHLANGA , 1022","Isindebele",5,5,5]
[12,"CHRIS HANI PRIMARY SCHOOL","OLD PARLIAMENT COMPLEX, SIYABUSWA  B, SIYABUSWA, 472","Isindebele",2,2,2]
[13,"DUMELANI PRIMARY SCHOOL","2056 BLOCK 10, MOLOTO, KWAMHLANGA, 1022","Isindebele",4,4,4]
[14,"DUMEZIZWENI PRIMARY SCHOOL","Stand 357, Emthonjeni, Machadodorp, 1170","Isindebele",4,4,4]
[15,"EDWALENI PRIMARY SCHOOL","634, TWEEFONTEIN \"H\", KWAMHLANGA, 1022","Isindebele",2,2,2]
[16,"EKUJABULENI PRIMARY SCHOOL","STAND NO. 765, EMPUMALANGA, KWAGGAFONTEIN, 458","Isindebele",2,2,2]
[17,"EKUKHANYENI PRIMARY SCHOOL","1518 MGIDI STREET, PIETERSKRAAL/SKIMMING, SIYABUSWA, 472","Isindebele",2,2,2]
[18,"EKUPHUMULENI PRIMARY SCHOOL","STAND NO. 341, TWEEFONTEIN A, KWAMHLANGA, 1022","Isindebele",1,1,1]
[19,"EMATJENI PRIMARY SCHOOL","2750, Empumalanga, Kwaggafontein , 458","Isindebele",2,2,2]
[20,"EMTHONJENI PRIMARY SCHOOL","STAND  NO  736, KWAGGAFONTEIN A, MPUMALANGA, 458","Isindebele",3,3,3]
[21,"EMTHUNZINI PRIMARY SCHOOL","STAND NO  300, KWAGGAFONTEIN ''A'', KWAGGAFONTEIN, 458","Isindebele",2,2,2]
[22,"EZWENILETHU PRIMARY SCHOOL","194, , SIYABUSWA 'A\", 472","Isindebele",2,2,2]
[23,"FUNDAWAZI PRIMARY SCHOOL","STAND NO 1411, TWEEFONTEIN EXT 'K', KWAMHLANGA, 1022","Isindebele",1,1,1]
[24,"GIJIMANI PRIMARY SCHOOL","1236 TWEEFONTEIN J, TWEEFONTEIN J, KWAMHLANGA, 1022","Isindebele",1,1,1]
[25,"GUGULETHU PRIMARY SCHOOL","Site no. 1519 , Buhlebesizwe ll, Kwamhlanga, 1022","Isindebele",2,2,2]
[26,"HLALISANANI PRIMARY SCHOOL","124TWEEFONTEIN G, KWAMHLANGA, EMPUMULANGA, 458","Isindebele",3,3,3]
[27,"HLEZIKUHLE PRIMARY SCHOOL","STAND NO 225, , VLAKLAAGTE NO 1, 458","Isindebele",1,1,1]
[28,"KABENZIWA PRIMARY SCHOOL","2340 A, SIYABUSWA, SIYABUSWA, 472","Isindebele",5,5,5]
[29,"KGANTSHO PRIMARY SCHOOL","619 SIMUNYE STREET, ZONE 3, MOUNTAINVIEW, 1022","Isindebele",4,4,4]
[30,"KHANYISA PRIMARY SCHOOL","1098 STAND 1098, KWAMHLANGA, KWAMHLANGA, 1022","Isindebele",1,1,1]
[31,"KHAYALETHU PRIMARY SCHOOL","342 MOHLAMONYANE SECTION, BOEKENHOUTHOEK, Thembisile Municipality, 458","Isindebele",2,2,2]
[32,"KHAYELITJHA PRIMARY SCHOOL","611 MUSI STREET, KWAMHLANGA, KWAMHLANGA, 1022","Isindebele",3,3,3]
[33,"KHOBONGWANE PRIMARY SCHOOL","314 Tshamahansi Section, KWA-LITHO, RUST-DER-WINTER, 430","Isindebele",1,1,1]
[34,"KHULANGELWAZI PRIMARY SCHOOL","1628 TWEEFONTEIN C, MANALENI, PHUMULA, 1022","Isindebele",1,1,1]
[35,"KHULUFUNDE PRIMARY SCHOOL","2085 TAMBO BASE STREET, BUHLEBESIZWE NO. 2, EMPUMALANGA, 458","Isindebele",6,6,6]
[36,"KHUPHUKANI PRIMARY SCHOOL","Stand no. 1017 , Tweefontein B2, KwaMhlanga, 1022","Isindebele",1,1,1]
[37,"KHUTHALANI PRIMARY SCHOOL","633 TWEEFONTEIN H, , SOMAROBOGO, 1023","Isindebele",1,1,1]
[38,"KWAKWARI PRIMARY SCHOOL","40 VERENA \"A\", EMPUMALANGA, VERENA, 458","Isindebele",5,5,5]
[39,"LANGALIBALELE PRIMARY SCHOOL","SITE 10 000, STREET 09, PHOLA PARK KWAMHLANGA, KWAMHLANGA, 1022","Isindebele",2,2,2]
[40,"LELENGAYE PRIMARY SCHOOL","1856/7/8, , BOEKENHOUTHOEK, 458","Isindebele",1,1,1]
[41,"LINDOKUHLE PRIMARY SCHOOL","1573, Thembalethu/Belfast, kwamhlanga , 1022","Isindebele",3,3,3]
[42,"LUNGISANI PRIMARY SCHOOL","251, SIYABUSWA, SIYABUSWA, 472","Isindebele",2,2,2]
[43,"MABHOKO PRIMARY SCHOOL","STAND NO 2888, , WELTEVREDE, 462","Isindebele",2,2,2]
[44,"MAGADUZELA PRIMARY SCHOOL","STAND NO. 480 , KWAGGAFONTEIN 'A', Kwaggafontein, 458","Isindebele",3,3,3]
[45,"MAGODONGO PRIMARY SCHOOL","STAND NO. 2137/8, JAMAICA SECTION, MTHAMBOTHINI, 462","Isindebele",1,1,1]
[46,"MAKERANA PRIMARY SCHOOL","stand no 1463, VEZUBUHLE, KWAMHLANGA, 1022","Isindebele",3,3,3]
[47,"MANDLAKABABA PRIMARY SCHOOL","Stand No 2284 , Waterval B , Siyabuswa, 472","Isindebele",1,1,1]
[48,"MANTWANI PRIMARY SCHOOL","Stand No 5410, New Stands, Magelembe, 466","Isindebele",3,3,3]
[49,"MAPONDO PRIMARY SCHOOL","145 TWEEFONTEIN E, KWAMHLANGA, KWAMHLANGA, 1022","Isindebele",3,3,3]
[50,"MAQHAWE PRIMARY SCHOOL","999 SIYABUSWA A, SIYABUSWA, SIYABUSWA, 472","Isindebele",2,2,2]
[51,"MARELENG PRIMARY SCHOOL","A2250 Bonginfundo Road, Siyabuswa, Maganagobushwa, 472","Isindebele",1,1,1]
[52,"MARIDILI PRIMARY SCHOOL","728 TWEEFONTEIN B2, PHUMULA, Kwamhlanga, 458","Isindebele",2,2,2]
[53,"MASIZAKHE PRIMARY SCHOOL","164 TWEEFONTEIN B1, PHUMULA, Bronkhorstspruit, 458","Isindebele",2,2,2]
[54,"MASUKU PRIMARY SCHOOL","355, , SIYABUSWA, 472","Isindebele",1,1,1]
[55,"MAVULA PRIMARY SCHOOL","1444  HNH STREET, VEZUBUHLE, KWAMHLANGA, 1022","Isindebele",2,2,2]
[56,"MBONGO PRIMARY SCHOOL","NO. 20217, ALLEMANSDRIFT B, ALLEMANSDRIFT B, 449","Isindebele",1,1,1]
[57,"MGIBE PRIMARY SCHOOL","STAND NO.346, EMPUMALANGA, TWEEFONTEIN D, 458","Isindebele",1,1,1]
[58,"Mgwezani","STAND NO: 2113, EMPUMALANGA, KWAGGAFONTEIN 'C', 458","Isindebele",2,2,2]
[59,"MHLUTSHWA PRIMARY SCHOOL","Stand No# 94, Verena D, Mpumalanga, 1020","Isindebele",3,3,3]
[60,"MKHANYO PRIMARY SCHOOL","STAND NO 20197, ZAKHENI SECTION , KWAMHLANGA, 1022","Isindebele",2,2,2]
[61,"MKHULU COMBINED SCHOOL","Goedehoop Farm, , MIDDELBURG, 1050","Isindebele",1,1,1]
[62,"MNYAMANA PRIMARY SCHOOL","166 VEZUBUHLE, VEZUBUHLE, KWAMHLANGA, 1022","Isindebele",1,1,1]
[63,"Mogalitwa","6995 KLARINET EXT 6, KLARINET, EMALAHLENI, 1035","Isindebele",1,1,1]
[64,"Moloto ","44005 BLOCK 5  , MOLOTO VILLAGE, PRETORIA, 1022 / ","Isindebele",1,1,1]
[65,"MONIWA PRIMARY SCHOOL","669, Boekenhouthoek, Kwaggafontein, 458","Isindebele",1,1,1]
[66,"MORWE PRIMARY SCHOOL","2735 FENE STREET, KAMEELRIVIER B, KAMEELRIVIER B, 488","Isindebele",2,2,2]
[{"$f":"A68+1","v":67},"MOTOANENG PRIMARY SCHOOL","10 MANDELA VILLAGE, KWAMHLANGA, KWAMHLANGA, 1022","Isindebele",2,2,2]
[68,"Mpilonhle Primary","191 MTSWENI STREET, SAKHELWE, DULLSTROOM, 1110","Isindebele",1,1,1]
[69,"MUSI PRIMARY SCHOOL","STAND NO 667, SECTION B, KWA-MHLANGA, 1022","Isindebele",2,2,2]
[70,"NDABEZITHA PRIMARY SCHOOL","STAND NO.8, MRHAWINI SECTION, RURAL, 462","Isindebele",2,2,2]
[71,"NDEDEMA PRIMARY SCHOOL","Stand No :2043 A, Waterval B, Siyabuswa, 466","Isindebele",2,2,2]
[72,"NGAZANE PRIMARY SCHOOL","STAND NO. 1267, GEMSBOKSPRUIT, EMPUMALANGA, 458","Isindebele",2,2,2]
[73,"NJOMANE PRIMARY SCHOOL","1315 Mathyszynsloop, Mathyszynsloop, Empumalanga, 458","Isindebele",4,4,4]
[74,"NKOSABO PRIMARY SCHOOL","A 23 A  ALLEMANSDRIFT  C, SIYABUSWA, MBIBANE, 449","Isindebele",1,1,1]
[75,"NKOSIPHILE PRIMARY SCHOOL","30013 NEXT TO MAHLELA CAFE / CEMETRY, , MATSHIDING, 475","Isindebele",3,3,3]
[76,"NOBUHLE PRIMARY SCHOOL","1464 Kwaggafontein D, kWAGGAFONTEIN , Kwaggafontein, 458","Isindebele",1,1,1]
[77,"PETER MOKABA PRIMARY SCHOOL","523 MOLOTO BLOCK C, KWAMHLANGA, MOLOTO EXT 2, 1002","Isindebele",2,2,2]
[78,"PHAKGAMANG PRIMARY SCHOOL","STAND NO.1291, , GAPHAAHLA, 472","Isindebele",2,2,2]
[79,"PHANAGELA PRIMARY SCHOOL","1420 tweefontein g, kwamhlanga, kwamhlanga, 1022","Isindebele",2,2,2]
[80,"PHAPHAMANI PRIMARY SCHOOL","463 MATHYSZYNLOOP, , EMPUMALANGA, 458","Isindebele",2,2,2]
[81,"PHELWANE PRIMARY SCHOOL","1262, TWEEFONTEIN \"E\", EMPUMALANGA, 458","Isindebele",1,1,1]
[82,"PHUTHUMANI PRIMARY SCHOOL","STAND 228, THAMBALETHU, KWAMHLANGA, 1022","Isindebele",3,3,3]
[83,"PRINCE SJ PRIMARY SCHOOL","Stand No B0247, Mogononong, Siyabuswa, 472","Isindebele",1,1,1]
[84,"QEDUDLAME PRIMARY SCHOOL","678 Tweefontein  B2, , Kwamhlanga, 1022","Isindebele",1,1,1]
[85,"QHUBEKANI PRIMARY SCHOOL","Stand No. 358 Vlaklaagte No.1, KWAMHLANGA, Vlaklaagte No.1, 458","Isindebele",2,2,2]
[86,"RAMOKGELETSANE PRIMARY SCHOOL","478 SECTION A, RAMOKGELETSANE, SIYABUSWA, 472","Isindebele",1,1,1]
[87,"RETANG PRIMARY SCHOOL","1105, block a, moloto, 1022","Isindebele",2,2,2]
[88,"Rietkol ","675 CNR MATHEW & ANDREW STR ELOFF 2211","Isindebele",1,1,1]
[89,"SAKHE PRIMARY SCHOOL ","1989 THUTHUKA STREET, KAMEELREVIER B, BABETHU, 844","Isindebele",2,2,2]
[90,"SAKHILE PRIMARY SCHOOL","211 THAMBO BASE STR, KWAGGAFONTEIN, BUHLEBESIZWE, 458","Isindebele",3,3,3]
[91,"SEKEMISA PRIMARY SCHOOL","STAND NO 901, VERENA B, BRONKHORSTSPRUIT, 1020","Isindebele",1,1,1]
[92,"SIBONELO PRIMARY SCHOOL","1692 section b, SECTION B, SIYABUSWA, 472","Isindebele",1,1,1]
[93,"SIBONGIMPUMELELO PRIMARY SCHOOL","Stand no.  1592, Thembalethu, Kwamhlanga , 1022","Isindebele",3,3,3]
[94,"SIBONIWE PRIMARY SCHOOL","STAND NO. 102  Street 41, PHOLA PARK, KWAMHLANGA, 1022","Isindebele",2,2,2]
[95,"SIFIKILE PRIMARY SCHOOL","4336  KWAGGAFONTEIN \"A\", KWAGGAFONTEIN, KWAGGAFONTEIN, 458","Isindebele",3,3,3]
[96,"SIFUNDAKHONA PRIMARY SCHOOL","1003 TWEEFONTEIN C, PHUMULA SECTION, EMPUMALANGA, 458","Isindebele",1,1,1]
[97,"SIHLANGENE PRIMARY SCHOOL","10145, Two-lines, Watervaal 'A' Two-lines, 472","Isindebele",1,1,1]
[98,"SIJABULE PRIMARY SCHOOL","Stand No 422, , MBIBANE, 449","Isindebele",2,2,2]
[99,"SILINDILE PRIMARY SCHOOL","01 MAPHOTLA, WOLVELKRAAL, MARBLEWALL, 472","Isindebele",2,2,2]
[100,"SIMUYEMBIWA PRIMARY SCHOOL","72 MABHADU SECTION, NKOSINI, SIYABUSWA, 472","Isindebele",2,2,2]
[101,"SINDAWONYE PRIMARY SCHOOL","457  KWAGGA  B, EMPUMALANGA, KWAGGA  PLAZA, 458","Isindebele",2,2,2]
[102,"SINETJHUDU PRIMARY SCHOOL","304 Kwaggafontein \"D\", Empumalanga, Kwaggafontein, 458","Isindebele",4,4,4]
[103,"SIPHIWE PRIMARY SCHOOL","STAND NO. 1141, TWEEFONTEIN C, EMPUMALANGA, 458","Isindebele",2,2,2]
[104,"SIPHUMELELE COMBINED SCHOOL","Stand no 223, , KWAMHLANGA, 1022","Isindebele",2,2,2]
[105,"SIPHUMULE PRIMARY SCHOOL","99 Suncity C, Kameelpoortnek, SUNCITY, KWAMHLANGA, 1022","Isindebele",1,1,1]
[106,"SITHABILE PRIMARY SCHOOL","N0 270 Thabana Village, siyabuswa, Siyabuswa, 472","Isindebele",1,1,1]
[107,"SITHEMBISO PRIMARY SCHOOL","STAND NO. 1273, MAPHOTLA, SIYABUSWA, 472","Isindebele",2,2,2]
[108,"SIYABUSWA PRIMARY SCHOOL","2034  SIYABUSWA \"A'', SIYABUSWA, SIYABUSWA, 472","Isindebele",2,2,2]
[109,"SIYAPHAMBILI PRIMARY SCHOOL","266/7 Buhlebuzile Village, KWAMHLANGA, KWAMHLANGA, 1022","Isindebele",1,1,1]
[110,"SIZAKELE PRIMARY SCHOOL","STAND NO 354, WOLVENKOP, VERENA, 458","Isindebele",3,3,3]
[111,"SIZAMILE PRIMARY SCHOOL","STAND NO 1770, STREET 63, PHOLA PARK, KWAMHLANGA, KWAMHLANGA, 1022","Isindebele",2,2,2]
[112,"SIZANI PRIMARY SCHOOL","SITE1574 BUNGELA STREET, kameelrivier b, siyabuswa, 472","Isindebele",3,3,3]
[113,"SIZISIZWE PRIMARY SCHOOL","STAND NO.1403, VAALBANK, MBIBANE, 449","Isindebele",1,1,1]
[114,"SOMAROBOGO PRIMARY SCHOOL","1707 MAROBOGO STREET, TWEEFONTEIN 'E', EMPUMALANGA, 1022","Isindebele",2,2,2]
[115,"SOMLINGO PRIMARY SCHOOL","STAND NO 151, VERENA, VERENA C, 458","Isindebele",2,2,2]
[116,"SOMTSHONGWENI PRIMARY SCHOOL","STAND NO:456, KWAGGA B, KWAGGAFONTEIN, 458","Isindebele",3,3,3]
[117,"THABANG PRIMARY SCHOOL","2138 VUKUZENZELE STREET, WATERVAL 'A', SIYABUSWA, 472","Isindebele",1,1,1]
[118,"THANDANANI PRIMARY SCHOOL","196 , KWAGGAFONTEIN  \"A\", KWAMHLANGA, 45","Isindebele",1,1,1]
[119,"THANDULWAZI PRIMARY SCHOOL","118 KWAGGAFONTEIN 'C', KWAGGAFONTEIN, KWAGGAFONTEIN, 458","Isindebele",2,2,2]
[120,"THEMBALIHLE PRIMARY SCHOOL","STAND NO .1925, MBIBANE, ALLEMANSDRIFT D, 449","Isindebele",1,1,1]
[121,"THEMBEKA PRIMARY SCHOOL","Stand No 1036 Section B, Siyabuswa, SIYABUSWA, 472","Isindebele",2,2,2]
[122,"THUBELIHLE PRIMARY SCHOOL","1680 KWAGGAFONTEIN C, KWAGGAFONTEIN, KWAGGAFONTEIN, 458","Isindebele",2,2,2]
[123,"THULANI PRIMARY SCHOOL","STAND 1108, MANDELA  VILLAGE, KWAMHLANGA, 1022","Isindebele",2,2,2]
[124,"THUTHUKANI PRIMARY SCHOOL","463 KWAGGAFONTEIN \"E, , EMPUMALANGA, 458","Isindebele",2,2,2]
[125,"TIDIMALO PRIMARY SCHOOL","STAND NO.1354 ZONE 6 MOUNTAIN VIEW, KWAMHLANGA, KWAMHLANGA, 1022","Isindebele",2,2,2]
[126,"VAMUHLE PRIMARY SCHOOL","7720 BOEKENHOUTHOEK, , KWAGGAFONTEIN, 12","Isindebele",1,1,1]
[127,"VELANGEZWI PRIMARY SCHOOL","D5788, MAGANAGOBUSWA, SIYABUSWA, 472","Isindebele",1,1,1]
[128,"VULINDLELA PRIMARY SCHOOL","Stand No. 1418 A, SIYABUSWA, SIYABUSWA, 472","Isindebele",1,1,1]
[129,"VUMAZONKE PRIMARY SCHOOL","2889, SIYABUSWA,  MRHETJHA SECTION, 472","Isindebele",2,2,2]
[130,"ZAKHELE PRIMARY SCHOOL","STAND NO 1053, KWAMHLANGA, TWEEFONTEIN, 1022","Isindebele",1,1,1]
[{"$f":"A132+1","v":131},"ZAKHENI PRIMARY SCHOOL","STAND NO. 1519, SKIMMING , SIYABUSWA , 472","Isindebele",2,2,2]
[132,"ZAMANI PRIMARY SCHOOL","497  Tweefontein 'F' , , kwamhlanga , 1022","Isindebele",2,2,2]
[133,"ZITHATHELENI PRIMARY SCHOOL","STAND NO 21 , KWAGGAFONTEIN A, KWAGGAFONTEIN, 458","Isindebele",1,1,1]
[134,"Sihle ","X Technikon Section BA KwaMhalanga 1022 Ms SS Skhosana ","Isindebele",1,1,1]
[135,"Zenzeleni","X Technikon Section BA KwaMhalanga 1022 Ms SS Skhosana ","Isindebele",3,3,3]
[136,"Zaminththuko ","X Technikon Section BA KwaMhalanga 1022 Ms SS Skhosana ","Isindebele",3,3,3]
[137,"Jabulani ","X Technikon Section BA KwaMhalanga 1022 Ms SS Skhosana ","Isindebele",6,6,6]
[138,"Mangadisa","X Technikon Section BA KwaMhalanga 1022 Ms SS Skhosana ","Isindebele",2,2,2]
[139,"ZITHUTHUKISENI PRIMARY SCHOOL","Stand no 1212, Vlaklaagte 1, Empumalanga, 458","Isindebele",2,2,2]
["TOTAL AMOUNT OF TEACHERS PER GRADE",{"$nulls":3},{"$f":"SUM(E3:E141)","v":279},279,279]
["Sepedi (Nkangala District) "]
["No","Official_Institution_Name","StreetAddress","Language Double medium schools Language","Gr  1 Teachers","Gr 2  Teachers","Gr 3 Teachers"]
[1,"Batlagae","Stand No 442, Doornkop, Middelburg, 1051","Sepedi",4,4,4]
[{"$f":"A145+1","v":2},"BESILINDILE PRIMARY SCHOOL","4839 HLALANIKAHLE, PHASE 4, WITBANK, 1039","Sepedi",2,2,2]
[{"$f":"A146+1","v":3},"BONGANI PRIMARY SCHOOL","1339, BONGANI, KWAMHLANGA, 1022","Sepedi",1,1,1]
[4,"Borolo","0028 MAJAKANENG, , SIYABUSWA, 472","Sepedi",1,1,1]
[5,"Buthelelani","STAND NO 444, MADLAYEDWA, MADLAYEDWA, 460","Sepedi ",1,1,1]
[6,"CHIEF LUTHULI PRIMARY SCHOOL","179 EXTENTION 1, LUTHULI VILLAGE, KWAMHLANGA , 1022","Sepedi",3,3,3]
[7,"DITLHOKWE PRIMARY SCHOOL","STAND NO.85, GA-MARIA, SKILPADFONTEIN, 431","Sepedi",2,2,2]
[8,"Dumelani","2056 BLOCK 10, MOLOTO, KWAMHLANGA, 1022","Sepedi",3,3,3]
[9,"DUNBAR PRIMARY SCHOOL","PLOT 134 EXT 16, EMPUMELELWENI, EMALAHLENI, 1036","Sepedi",1,1,1]
[10,"EDWARD MATYEKA PRIMARY SCHOOL","1938 LUCY MASHIANE Street, KWAGUQA EXT 4, EMALAHLENI, 1039","Sepedi",5,5,5]
[11,"Ekuphakameni","455 VAALBANK, , LIBANGENI, 449","Sepedi ",2,2,2]
[12,"EMFUNDWENI PRIMARY SCHOOL","395 VAALBANK EXTENTION, MBIBANE, MARBLE HALL, 449","Sepedi",2,2,2]
[13,"Gijamphezeni","95 MAHLANGU STREET, MADUBADUBA, MADUBADUBA, 449","Sepedi",1,1,1]
[14,"HOUTENBEK PRIMARY SCHOOL","HOUTENBEK FARM, tonteldoos, 1111","Sepedi",2,2,2]
[15,"ITIRELENG PRIMARY SCHOOL","700 MULEKA STREET , THUSHANANG LOCATION, EMALAHLENI, 1035","Sepedi",2,2,2]
[16,"Jabulani","35 PHUMULA TRUST, , TWEEFONTEIN A, 1021","Sepedi",1,1,1]
[17,"KABETE PRIMARY SCHOOL","STAND NO:  233, DEBEERSPUT, Koedoespoort, 431","Sepedi",2,2,2]
[18,"KATJIBANE PRIMARY SCHOOL","768 Leswatlheng Section, Seabe, Settlers, 430","Sepedi",1,1,1]
[19,"kgantsho","619 SIMUNYE STREET, ZONE 3, MOUNTAINVIEW, 1022","Sepedi",1,1,1]
[20,"Khayelitjha","611 MUSI STREET, KWAMHLANGA, KWAMHLANGA, 1022","Sepedi",1,1,1]
[21,"Khobongwane","314 Tshamahansi Section, KWA-LITHO, RUST-DER-WINTER, 430","Sepedi ",2,2,2]
[22,"KWAGUQA PRIMARY SCHOOL","1181 CINDI STREET, KWAGUQA, WITBANK, 1039","Sepedi",2,2,2]
[23,"LINDOKUHLE PRIMARY SCHOOL","1573, Thembalethu/Belfast, kwamhlanga , 1022","Sepedi",1,1,1]
[24,"Loding Pri","Stand No 34 [10002], Loding Village, Loding Village, 449","Sepedi ",1,1,1]
[25,"MAKERANA PRIMARY SCHOOL","stand no 1463, VEZUBUHLE, KWAMHLANGA, 1022","Sepedi",1,1,1]
[26,"MAKHOSOKE PRIMARY SCHOOL","STAND NO. 350, LODING EXT. 2, MBIBANE, 449","Sepedi",2,2,2]
[27,"MAKOPANONG PRIMARY SCHOOL","C 4586, MAGANAGOBUSWA, SIYABUSWA, 472","Sepedi",3,3,3]
[28,"Mandlakababa","Stand No 2284 , Waterval B , Siyabuswa, 472","Sepedi ",1,1,1]
[29,"Mareleng","A2250 Bonginfundo Road, Siyabuswa, Maganagobushwa, 472","Sepedi ",2,2,2]
[30,"MATHETHE PRIMARY SCHOOL","SECTION E 71, SLEUTELFONTEIN, BLOEDFONTEIN, 465","Sepedi",1,1,1]
[31,"Mbongo","NO. 20217, ALLEMANSDRIFT B, ALLEMANSDRIFT B, 449","Sepedi",1,1,1]
[32,"Mkhanyo","STAND NO 20197, ZAKHENI SECTION , KWAMHLANGA, 1022","Sepedi",2,2,2]
[33,"Mmagobana","435 Church Street, Thushanang, eMALAHLENI, 1039","Sepedi",2,2,2]
[34,"MNYAMANA PRIMARY SCHOOL","166 VEZUBUHLE, VEZUBUHLE, KWAMHLANGA, 1022","Sepedi",1,1,1]
[35,"Mogalitwa","6994 KLARINET EXT 6, KLARINET, EMALAHLENI, 1035","Sepedi",1,1,1]
[36,"Mohlatseng","SECTION C49, SLEUTELFONTEIN, MARBLE HALL, 465","Sepedi ",2,2,2]
[37,"Moloto ","44005 BLOCK 5  , MOLOTO VILLAGE, PRETORIA, 1022 / ","Sepedi",3,3,3]
[38,"MORUTI MAKUSE PRIMARY SCHOOL","61 Leola  Street, Extention 2  Zone 14, WITBANK, 1039","Sepedi",1,1,1]
[39,"Motoaneng","10 MANDELA VILLAGE, KWAMHLANGA, KWAMHLANGA, 1022","Sepedi",3,3,3]
[40,"Motswedi","1147 LESELESELENG SECTION, , SEABE, 417","Sepedi",1,1,1]
[41,"MOUTSE PRIMARY SCHOOL","Stand No 30095, Mbibane , Makometsane , 449","Sepedi",3,3,3]
[42,"MPHILONHLE PRIMARY SCHOOL","190 MTSWENI STREET, SAKHELWE, DULLSTROOM, 1110","Sepedi",1,1,1]
[43,"Mpilonhle Primary","190 MTSWENI STREET, SAKHELWE, DULLSTROOM, 1110","Sepedi",1,1,1]
[44,"Musi","STAND NO 667, SECTION B, KWA-MHLANGA, 1022","Sepedi",1,1,1]
[45,"Mvuso","8103 Mandela Street, MHLUZI, EXT 5, 1053","Sepedi",1,1,1]
[46,"Ndayi","189 K/Poort, KWAMHLANGA, KwaMhlanga, 1022","Sepedi",1,1,1]
[47,"NELSON NGUBENI PRIMARY SCHOOL","2918 TSOTETSI  STREET, KWA-GUQA  EXT. 5, WITBANK, 1035","Sepedi",1,1,1]
[48,"NJOMANE PRIMARY SCHOOL","1315 Mathyszynsloop, Mathyszynsloop, Empumalanga, 458","Sepedi",1,1,1]
[49,"Nkosabo","A 23 A  ALLEMANSDRIFT  C, SIYABUSWA, MBIBANE, 449","Sepedi ",1,1,1]
[50,"PETER MOKABA PRIMARY SCHOOL","523 MOLOTO BLOCK C, KWAMHLANGA, MOLOTO EXT 2, 1002","Sepedi",3,3,3]
[51,"Phakgamang","STAND NO.1291, , GAPHAAHLA, 472","Sepedi ",1,1,1]
[52,"PHAKGAMANG PRIMARY SCHOOL","1262, TWEEFONTEIN \"E\", EMPUMALANGA, 458","Sepedi ",1,1,1]
[53,"PHUTHUMANI PRIMARY SCHOOL","STAND 228, THAMBALETHU, KWAMHLANGA, 1022","Sepedi",1,1,1]
[54,"Prince SJ","Stand No B0247, Mogononong, Siyabuswa, 472","Sepedi",1,1,1]
[55,"RAMODIEGI PRIMARY SCHOOL","SECTION.A 160, SLEUTELFONTEIN, MARBLEHALL, 465","Sepedi",1,1,1]
[56,"Ramogeletsane","478 SECTION A, RAMOKGELETSANE, SIYABUSWA, 472","Sepedi",2,2,2]
[57,"REKWELE PRIMARY SCHOOL","409 Leefontein A , Digwale, Leefontein, 478","Sepedi",2,2,2]
[58,"Retang","409 Leefontein A , Digwale, Leefontein, 478","Sepedi ",4,4,4]
[59,"REATLEGILE PRIMARY SCHOOL","365 BALOI STREET, MATHAILENI, MIDDELBURG, 1053","Sepedi ",3,3,3]
[{"$f":"A203+1","v":60},"RETHABILE PRIMARY SCHOOL","Stand No. 4039 ( Madubaduba ), , Mbibane, 449","Sepedi",1,1,1]
[61,"SAKHILE PRIMARY SCHOOL","211 THAMBO BASE STR, KWAGGAFONTEIN, BUHLEBESIZWE, 458","Sepedi",1,1,1]
[62,"SIBONELO PRIMARY SCHOOL","1692 section b, SECTION B, SIYABUSWA, 472","Sepedi",1,1,1]
[63,"Sibongile","57 DIEKENG, MARAPYANE, SKILPADFONTEIN, 431","Sepedi ",1,1,1]
[64,"SIBONGIMPUMELELO PRIMARY SCHOOL","Stand no.  1592, Thembalethu, Kwamhlanga , 1022","Sepedi",1,1,1]
[65,"SIHLEZI PRIMARY SCHOOL","1382 SUNCITY B, KAMEELPOORTNEK, KWAMHLANGA, 1022","Sepedi",1,1,1]
[66,"SIJABULE PRIMARY SCHOOL","Stand No 422, , MBIBANE, 449","Sepedi",1,1,1]
[{"$f":"A210+1","v":67},"SIPHUMULE PRIMARY SCHOOL","99 Suncity C, Kameelpoortnek, SUNCITY, KWAMHLANGA, 1022","Sepedi",2,2,2]
[68,"Sithabile","N0 270 Thabana Village, siyabuswa, Siyabuswa, 472","Sepedi ",1,1,1]
[69,"Sithembiso","STAND NO. 1273, MAPHOTLA, SIYABUSWA, 472","Sepedi",1,1,1]
[70,"SITHOBELANE PRIMARY SCHOOL","STAND NO 927, GEMSBOKSPRUII, EMPUMALANGA, 458","Sepedi ",2,2,2]
[71,"SIZAMAKWETHU PRIMARY SCHOOL","1293 MAIN ROAD, GA-PHAAHLA, SIYABUSWA, 472","Sepedi ",2,2,2]
[72,"Sizani","SITE1574 BUNGELA STREET, kameelrivier b, siyabuswa, 472","Sepedi ",1,1,1]
[73,"Sizisizwe","STAND NO.1403, VAALBANK, MBIBANE, 449","Sepedi",2,2,2]
[74,"SOMABEDLANA PRIMARY SCHOOL","372  NEWSTAND, , GUGULETHU, 430","Sepedi ",2,2,2]
[75,"SOMLINGO PRIMARY SCHOOL","STAND NO 151, VERENA, VERENA C, 458","Sepedi",1,1,1]
[76,"SOMLOKOTHWA PRIMARY SCHOOL","349 LEEUFONTEIN, DIGWALE, MBIBANE, 449","Sepedi",2,2,2]
[77,"Thabang","2138 VUKUZENZELE STREET, WATERVAL 'A', SIYABUSWA, 472","Sepedi",1,1,1]
[78,"THEMBALIHLE PRIMARY SCHOOL","STAND NO .1925, MBIBANE, ALLEMANSDRIFT D, 449","Sepedi",3,3,3]
[79,"Thulani","STAND 1108, MANDELA  VILLAGE, KWAMHLANGA, 1022","Sepedi ",1,1,1]
[80,"Thushanang","STAND NO 1000, MACHIPE VILLAGE, DENNILTON, 1030","Sepedi",1,1,1]
[81,"THUSHANANG PRIMARY SCHOOL","3695 MELATO AVENUE, EXT 3, MHLUZI, 1053","Sepedi",1,1,1]
[82,"Tidimalo","STAND NO.1354 ZONE 6 MOUNTAIN VIEW, KWAMHLANGA, KWAMHLANGA, 1022","Sepedi",1,1,1]
[83,"Velangezwi","D5788, MAGANAGOBUSWA, SIYABUSWA, 472","Sepedi",1,1,1]
[84,"VUKILE PRIMARY SCHOOL","STAND125 LEEUFONTEIN B, MBIBANE, DIGWALE, 449","Sepedi",2,2,2]
[85,"Zakheni","STAND NO. 1519, SKIMMING , SIYABUSWA , 472","Sepedi",1,1,1]
[86,"ZAMINTUTHUKO PRIMARY SCHOOL","893   LOVEDAY STREET, BUHLEBESIZWE, KWAMHLANGA, 1022","Sepedi",1,1,1]
["TOTAL AMOUNT OF TEACHERS PER GRADE",{"$nulls":3},{"$f":"SUM(E145:E230)","v":137},{"$f":"SUM(F145:F230)","v":137},{"$f":"SUM(G145:G230)","v":137}]
["IsiZulu (Nkangala District)"]
["No","Official_Institution_Name","StreetAddress","Language Double medium schools Language","Gr  1 Teachers","Gr 2  Teachers","Gr 3 Teachers"]
[1,"ARBOR PRIMARY SCHOOL","PORTION 5 VLAKVAFONTEIN, DELMAS, Delmas, 2210","Isizulu ",1,1,1]
[{"$f":"A234+1","v":2},"ARNOT COLLIERY PRIMARY SCHOOL","STAND NO 183, ARNOT, MAFUBE/SIKHULULIWE VILLAGE, 1051","Isizulu ",1,1,1]
[{"$f":"A235+1","v":3},"BATLAGAE PRIMARY SCHOOL","Stand No 442, Doornkop, Middelburg, 1050","Isizulu ",5,5,5]
[4,"Bankfontein ","X Technikon Section BA KwaMhalanga 1022 Ms SS Skhosana ","Isizulu ",2,2,2]
[5,"Blinkfontein ","X Technikon Section BA KwaMhalanga 1022 Ms SS Skhosana ","Isizulu ",1,1,1]
[6,"BAZANI PRIMARY SCHOOL","891 SHABANGU STREET, , DELMAS, 2210","Isizulu ",2,2,2]
[7,"BLACKHILL SCHOONGEZICHT PRIMARY SCHOOL","5396 SOLLY MOROAPE & CLEMENT ZULU CORNER, KWAGUQA EXT 10, EMALAHLENI, 1039","Isizulu ",4,3,4]
[8,"BONGINHLANHLA PRIMARY SCHOOL","339 MPUNGUSHE CRESCENT, THUBELIHLE TOWNSHIP, Ga - Nala, 2271","Isizulu ",3,3,3]
[9,"Delpark","652 UGANDA DRIVE, DELPARK EXT. 2, DELMAS, 2210","Isizulu ",2,2,2]
[10,"DUNBAR PRIMARY SCHOOL","PLOT 134 EXT 16, EMPUMELELWENI, EMALAHLENI, 1035","Isizulu",4,4,4]
[11,"EDWARD MATYEKA PRIMARY SCHOOL","1937 LUCY MASHIANE Street, KWAGUQA EXT 4, EMALAHLENI, 1039","IsiZulu",5,4,4]
[12,"EMAKHAZENI COMBINED BOARDING SCHOOL","stand no 365 rietfontein farm, MACHADODORP, machadodorp, 1170","Isizulu ",2,2,2]
[13,"FUNDISISA PRIMARY SCHOOL","PLOT 10 GOEDGEDACHT, DRYDEN, DELMAS, 2210","Isizulu ",1,1,1]
[14,"Impilo Primary School,","X Technikon Building Section BA KwaMhlanga 1022 Contact: Ms SS Skhosana ","Isizulu ",1,1,1]
[15,"IPANI PRIMARY SCHOOL","BEESTEPAN FARM, , MIDDELBURG, 1050","Isizulu ",3,3,3]
[16,"JABULANI PRIMARY SCHOOL","35 PHUMULA TRUST, , TWEEFONTEIN A, 1021","Isizulu",6,6,6]
[17,"JEREMIA MDAKA PRIMARY SCHOOL","7599 PROF BHENGU STR, VOSMAN, EMALAHLENI, 1039","Isizulu ",5,5,5]
[18,"JOHANNES KANANDA PRIMARY SCHOOL","4300 PHASE 4, KWA-GUQA, EMALAHLENI, 1039","Isizulu ",4,4,4]
[19,"KHANGELA PRIMARY SCHOOL","159 MOTLOUNG STREET, BOTLENG, DELMAS, 2210","Isizulu ",4,5,5]
[20,"KHONZIMFUNDO PRIMARY SCHOOL","2102 VAN DALLEN STREET, ACKERVILLE, WITBANK, 1035","Isizulu ",2,2,1]
[21,"KHULUNOLWAZI PRIMARY SCHOOL","7754 EXT 24, NASARET, MIDDELBURG, 1050","Isizulu ",5,5,5]
[22,"KROMDRAAI PRIMARY SCHOOL","PHASE 4 , Extension, KWAGUQA, 1039","Isizulu ",2,2,2]
[23,"KWAGUQA PRIMARY SCHOOL","1180 CINDI STREET, KWAGUQA, WITBANK, 1039","Isizulu",5,3,3]
[24,"KWANALA PRIMARY SCHOOL","KRIEL COLLIERY ROAD, KRIEL, KRIEL, 2271","Isizulu ",3,3,3]
[25,"LEHLAKA COMBINED SCHOOL","LEHLAKA DRIVE, RIETSPRUIT, SUBURB, 2231","Isizulu ",1,1,1]
[26,"MAKAUSE COMBINED SCHOOL","Stand No. 4412 Extension 3, Phola location, Ogies, 2233","Isizulu ",4,4,4]
[27,"MALOMA PRIMARY SCHOOL","3221 Johnson Drive, Ackervillle, Emalahleni, 1039","Isizulu ",1,1,1]
[28,"MANGADISA PRIMARY SCHOOL","860, LANGKLOOF, 1046","Isizulu",2,2,2]
[29,"MANYANO PRIMARY SCHOOL","2002 MALEMA STREET, MHLUZI, MIDDELBURG, 1050","Isizulu ",3,3,3]
[30,"Manyazela ","WAAIKRAAL FARM, DELMAS, DELMAS, 2210","IsiZulu ",1,1,1]
[31,"MAPULE SINDANE  SCHOOL","557 LEKWA STREET, EMALAHLENI, WITBANK, 1039","Isizulu ",2,2,2]
[32,"MAZIYA PRIMARY SCHOOL","437 Ackerman Street, Kwazamokuhle, Hendrina, 1098","Isizulu ",2,2,1]
[33,"MDUMISENI PRIMARY SCHOOL","4161  Ntshangase Street, BOTLENG LOCATION, DELMAS, 2210","Isizulu ",6,5,5]
[34,"Mogalitwa","6995 KLARINET EXT 6, KLARINET, EMALAHLENI, 1035","IsiZulu ",3,3,3]
[35,"MOKIBE PRIMARY SCHOOL","261 JS KWARTSPRUIT FARM PORTION, EMALAHLENI, EMALAHLENI, 1035","Isizulu ",2,1,1]
[36,"MORELIG COMBINED SCHOOL","WONDERFONTEIN, WONDERFONTEIN, BELFAST, 1101","Isizulu",1,1,1]
[37,"MORUTI MAKUSE PRIMARY SCHOOL","61 Leola  Street, Extention 2  Zone 14, WITBANK, 1039","Isizulu",4,4,4]
[38,"MPHILONHLE PRIMARY SCHOOL","190 MTSWENI STREET, SAKHELWE, DULLSTROOM, 1110","Isizulu",3,3,3]
[39,"Mpilonhle Primary","190 MTSWENI STREET, SAKHELWE, DULLSTROOM, 1110","IsiZulu ",1,1,1]
[40,"MTHOMBENI PRIMARY SCHOOL","6661 MTHUNZINI STREET, MHLUZI, MIDDELBURG, 1053","IsiZulu ",3,3,3]
[41,"Mvuso","8104 Mandela Street, MHLUZI, EXT 5, 1053","IsiZulu ",3,3,3]
[42,"MVUZO PRIMARY SCHOOL","8103 Mandela Street, MHLUZI, EXT 5, 1053","Isizulu",5,5,4]
[43,"NANCY SHIBA PRIMARY SCHOOL","2101 PHILLIS MOLATUDI STREET, EXT 4, WITBANK, 1035","Isizulu ",3,3,3]
[44,"NELSON NGUBENI PRIMARY SCHOOL","2918 TSOTETSI  STREET, KWA-GUQA  EXT. 5, WITBANK, 1035","Isizulu",5,4,4]
[45,"NKONJANE PRIMARY SCHOOL","5043 WILLIE ACKERMAN DRIVE, THUSHANANG, EMALAHLENI, 1039","Isizulu ",3,2,2]
[46,"OTHANDWENI PRIMARY SCHOOL","159  KGOMO STR, BOTLENG   LOCATION , DELMAS, 2210","Isizulu ",3,3,2]
[47,"REATLEGILE PRIMARY SCHOOL","365 BALOI STREET, MATHAILENI, MIDDELBURG, 1053","Isizulu ",3,3,3]
[48,"SIKHULISIWE PRIMARY SCHOOL","1329 VLAAKLAAGTE, EMPUMALANGA, KWAMHLANGA, 458","IsiZulu",1,1,1]
[49,"SIPHENDULWE PRIMARY SCHOOL","67 Ingwenyama Street, KwaGuqa Extension 2, Witbank, 1034","Isizulu ",3,3,3]
[50,"SIYATHOKOZA PRIMARY SCHOOL","2413 DUVENHAGE STREET, PHOLA LOCATION , OGIES, 2233","Isizulu ",3,3,3]
[51,"SIZOFUNDA PRIMARY SCHOOL","28 RAILWAY AVENUE, SUNDRA, SUNDRA, 2200","Isizulu ",1,1,1]
[52,"SIZUZILE PRIMARY SCHOOL","3486 MLAMBO STR, BOTLENG EXT 3, DELMAS, 2210","Isizulu ",3,3,4]
[53,"SPRINGVALLEY PRIMARY SCHOOL","VULTURE STREET, REYNO RIDGE, EMALAHLENI, 1039","Isizulu ",1,1,1]
[54,"SUKUMANI PRIMARY SCHOOL","692 CORNER VULINDLELA STREET, , PHOLA, 2233","IsiZulu",3,3,3]
[55,"SWARTKLIP COMBINED SCHOOL","Witklip Farm, Schoeman Farm, Delmas, 2210","Isizulu ",2,1,1]
[56,"THULASIZWE LOWER PRIMARY SCHOOL","X Technikon Section BA KwaMhalanga 1022 Ms SS Skhosana ","IsiZulu ",2,2,2]
[57,"THUSHANANG PRIMARY SCHOOL","3695 MELATO AVENUE, EXT 3, MHLUZI, 1053","Isizulu",5,5,5]
[58,"THUTHUKANI PRIMARY SCHOOL","693 FENYANE & LERUTLA STREET, , OGIES, 2230","Isizulu ",2,2,2]
[59,"UKHWEZI PRIMARY SCHOOL","231 MAYOR STREET, SIYATHUTHUKA, BELFAST, 1102","Isizulu",7,6,6]
[60,"VERENA PRIMARY SCHOOL","X Technikon Section BA KwaMhalanga 1022 Ms SS Skhosana ","IsiZulu ",2,2,2]
[61,"VEZIMFUNDO PRIMARY SCHOOL","8616 BOTLENG EXT.6, , DELMAS, 2210","Isizulu ",4,3,4]
[62,"VEZUBUHLE SECONDARY SCHOOL","X Technikon Section BA KwaMhalanga 1022 Ms SS Skhosana ","IsiZulu ",2,2,2]
[63,"VULAMEHLO PRIMARY SCHOOL","X Technikon Section BA KwaMhalanga 1022 Ms SS Skhosana ","IsiZulu ",2,2,2]
[64,"VUMA PRIMARY SCHOOL","1534 Lembede Street, , Emalahleni, 1039","Isizulu ",2,2,2]
[65,"VUSA PRIMARY SCHOOL","X Technikon Section BA KwaMhalanga 1022 Ms SS Skhosana ","IsiZulu ",2,2,2]
[66,"ZIMISELENI PRIMARY SCHOOL","X Technikon Section BA KwaMhalanga 1022 Ms SS Skhosana ","IsiZulu ",2,2,2]
["TOTAL AMOUNT OF TEACHERS PER GRADE",{"$nulls":3},{"$f":"SUM(E234:E299)","v":186},176,175]
["Setswana (Nkangala District)"]
["No","Official_Institution_Name","StreetAddress","Language Double medium schools Language","Gr  1 Teachers","Gr 2  Teachers","Gr 3 Teachers"]
[1,"ANDRIES MASHILE PRIMARY SCHOOL","20090 Phake Ratlhagane, BA-MOKGOKO, Hammanskraal, 432","Setswana",2,2,2]
[{"$f":"A303+1","v":2},"DIPERE PRIMARY SCHOOL","860 DIKGOPHANENG SECTION, , MMAMETLHAKE, 432","Setswana",1,1,1]
[{"$f":"A304+1","v":3},"IKAGELENG PRIMARY SCHOOL","2896 NAINE SECTION, SKIPADFONTEIN, SKILPADFONTEIN, 431","Setswana",2,2,2]
[4,"KAGISO PRIMARY SCHOOL","MAGARENG 1691, NOKANENG, NOKANENG, 435","Setswana",2,2,1]
[5,"KGOPE PRIMARY SCHOOL","1346 MOHETE SECTION, SEABE, HAMMANSKRAAL, 417","Setswana",1,1,1]
[6,"KHUTSONG PRIMARY SCHOOL","STAND 2832 NU-HALLE, SKILPADFONTEN, SKILPADFONTEIN, 431","Setswana",2,2,2]
[7,"KOME PRIMARY SCHOOL","E 188 Majatladi, Lefiswane, Skilpadfontein, 431","Setswana",1,1,1]
[8,"LEFISO PRIMARY SCHOOL","E 1923 PANENG SECTION , LEFISO, MARAPYANE, 413","Setswana",1,1,1]
[9,"LEFISWANE PRIMARY SCHOOL","E659 DITLHAGANE SECTION, , SKILPADFONTEIN, 431","Setswana",2,1,1]
[10,"MADIBOANE PRIMARY SCHOOL","1487 ditlhaka  section , seabe, hammanskraal, 417","Setswana",1,1,1]
[11,"MALOKA PRIMARY SCHOOL","630 MOCHA SECTION, PANKOP, PANKOP, 414","Setswana",1,1,1]
[12,"MALONTONE PRIMARY SCHOOL","1841 TERATENG SECTION, , SEABE, 417","Setswana",3,3,3]
[13,"MANTLOLE PRIMARY SCHOOL","2062 MANTLOLE VILLAGE, , PANKOP, 414","Setswana",1,1,1]
[14,"MASOBYE PRIMARY SCHOOL","1789 TRUST SECTION, PANKOP, HAMMANSKRAAL, 414","Setswana",1,1,1]
[15,"MMADIMO PRIMARY SCHOOL","683 LEPAAKU SECTION, SEABE, SEABE, 417","Setswana",1,1,1]
[16,"MMAMOGASWA PRIMARY SCHOOL","STAND.NO.510, HAMMANSKRAAL, NOKANENG, 435","Setswana",1,1,1]
[17,"MOCHA PRIMARY SCHOOL","281 MOEMA SECTION, PANKOP, PANKOP, 414","Setswana",1,1,1]
[18,"MOEKWE PRIMARY SCHOOL","STAND 694, LENGELENGELENG SECTION, NOKANENG, 435","Setswana",1,1,1]
[19,"MOLOTO COMBINED SCHOOL","STAND NO E194 , , GREENSIDE, 431","Setswana",3,3,4]
[20,"NKOTOLANE PRIMARY SCHOOL","1161 Mocha section, Mmametlhake, MMAMETLHAKE, 432","Setswana",1,1,1]
[21,"NTESENG PRIMARY SCHOOL","1214, LESWATLHENG SECTION, HAMMANSKRAAL, 435","Setswana",1,1,1]
[22,"PATRICK MANKOLANE PRIMARY SCHOOL","STAND NO :2079, GA - MOCHA SECTION, SKILPADFONTEIN, 431","Setswana",1,1,2]
[23,"PHAKE PRIMARY SCHOOL","STAND NO. 369, PHAKE THABENG , PHAKE THABENG, 432","Setswana",3,2,2]
[24,"PHOPOLO PRIMARY SCHOOL","626 MOCHA SECTION, , PANKOP, 414","Setswana",2,2,2]
[25,"POTSANYANE PRIMARY SCHOOL","417 Legotlhong Section, , Skilpadfontein, 431","Setswana",1,1,1]
[26,"RADIJOKO PRIMARY SCHOOL","E970 RADIJOKO VILLAGE, , SKILPADFONTEIN, 431","Setswana",1,1,1]
[27,"RAMABALE PRIMARY SCHOOL","STAND NO E 1448, LETSOALO SECTION, LEFISO, 413","Setswana",2,2,2]
[28,"RAMABIFI PRIMARY SCHOOL","2789 GA TSHWEU, , SEABE, 417","Setswana",1,1,1]
[29,"RAMANCHAANE PRIMARY SCHOOL","1122 MOGOBENG SECTION, , SEABE, 417","Setswana",2,2,2]
[30,"RAMANTSHO PRIMARY SCHOOL","8029 Ramantsho village, Skilpadfontein, Skilpadfontein, 431","Setswana",1,1,1]
[31,"RANKAILA PRIMARY SCHOOL","173 RANKAILA SECTION, PHAKE RANKAILA, MMAMETLHAKE, 432","Setswana",2,2,2]
[32,"REFITIHILE PRIMARY SCHOOL","102 unter halter road, PHAKE, Rebone section, 432","Setswana",1,1,1]
[33,"SEHOKHO PRIMARY SCHOOL","STAND NO. 760 , SKILPADFONTEIN, SEHOKHO VILLAGE, 431","Setswana",1,1,1]
[34,"SIBIS PRIMARY SCHOOL","Mocha Section, , Skilpadfontein, 431","Setswana",2,2,2]
[35,"TABANE PRIMARY SCHOOL","513 PHELENDABA SECTION , BAMOKGOKO , MMAMETLHAKE, 432","Setswana",1,1,1]
[36,"THABONG PRIMARY SCHOOL","STAND NO. 712, KATJIBANE, LESWATLHENG SECTION, 517","Setswana",1,1,1]
[37,"THEKISO PRIMARY SCHOOL","695  Lengelengeleng, Nokaneng, Warmbaths, 435","Setswana",1,1,2]
[38,"TLHAME PRIMARY SCHOOL","1683 Newstand Section, MMAMETLHAKE, MMAMETLHAKE, 432","Setswana",1,1,1]
[39,"MOTSWEDI PRIMARY SCHOOL","1147 LESELESELENG SECTION, , SEABE, 417","Setswana/Sepedi",1,1,1]
["TOTAL AMOUNT OF TEACHERS PER GRADE",{"$nulls":3},54,52,54]
["Siswati (Ehlanzeni District)"]
["No","Official_Institution_Name","StreetAddress","Language Double medium schools Language","Gr  1 Teachers","Gr 2  Teachers","Gr 3 Teachers"]
[1,"AA KHUMALO PRIMARY SCHOOL","STANDNO 191, BACKDOOR , BACKDOOR, 1245","Siswati",2,2,2]
[{"$f":"A345+1","v":2},"AMON NKOSI PRIMARY SCHOOL","6099 extension 12, , Barberton, 1300","Siswati",3,3,4]
[{"$f":"A346+1","v":3},"BAMBANANI PRIMARY SCHOOL","STAND NO. 483, PHOLA TRUST, WHITE RIVER, 1240","Siswati",2,1,1]
[4,"BENJAMIN PRIMARY SCHOOL","STAND NO 1072, , NELSPRUIT, 1203","Siswati",4,4,4]
[5,"BHAMBATHA PRIMARY SCHOOL","STAND NO 912, STEENBOK, KOMATIPOORT, 1347","Siswati",2,2,1]
[6,"BONGAMLAMBO PRIMARY SCHOOL","Newscom, , Nelspruit,","Siswati",2,2,2]
[7,"BONGANI PRIMARY SCHOOL","STAND NO. 6, DAANTJIE TRUST - ENKOMENI, DAANTJIE, 1216","Siswati",3,3,2]
[8,"BONGOKUHLE PRIMARY SCHOOL","STAND NO. 22 , SCHOEMANSDAL B, SHONGWE MISSION, 1331","Siswati",4,4,4]
[9,"BOSCHRAND PRIMARY SCHOOL","STAND NO276 TJ, , MATAFFIN, 1205","Siswati",3,4,4]
[10,"BUHLEBUYETA PRIMARY SCHOOL","2212 Hornet street, Lekazi Township, Kanyamazane, 1214","Siswati",2,2,2]
[11,"BUKHOSIBETFU PRIMARY SCHOOL","STAND NO 187, DRIEKOPPIES, MALELANE, 1331","Siswati",3,3,3]
[12,"BUYANI PRIMARY SCHOOL","947, Jeppes Reef, SHONGWE MISSION , 1331","Siswati",3,2,2]
[13,"CATFULANI PRIMARY SCHOOL","Stand no 2214 , , Kanyamazane, 1214","Siswati",2,3,1]
[14,"CELANI PRIMARY SCHOOL","STAND NO. 155, BHEKISWAKO TRUST, HAZYVIEW, 1242","Siswati",5,2,3]
[15,"CHAKAZA PRIMARY SCHOOL","Stand No. 8064, Kanyamazane, Kanyamazane, 1245","Siswati",2,2,2]
[16,"CHIEF MAKUNYULA PRIMARY SCHOOL","STAND NO 100, BLOCK A, BLOCK A, 1346","Siswati",5,4,4]
[17,"CHWENI PRIMARY SCHOOL","STAND No.40, CHWENI TRUST, White River, 1240","Siswati",2,2,2]
[18,"COPHETSHENI PRIMARY SCHOOL","stand no 1590B, kabokweni, kabokweni, 1245","Siswati",2,2,2]
[19,"CROMATI COMBINED SCHOOL","ORLANDO VILLAGE, , KOMATIPOORT, 1340","Siswati",1,1,2]
[20,"DRIEKOPPIES COMBINED SCHOOL","Stand No 756, , Driekoppies, 1331","Siswati",1,1,1]
[21,"DUMA PRIMARY SCHOOL","STAND NO. 5085, , MSOGWABA, 1215","Siswati",2,2,2]
[22,"EDWALENI PRIMARY SCHOOL","909 Dwaleni Trust, , Kabokweni, 1245","Siswati",3,3,3]
[23,"EKHIYENI PRIMARY SCHOOL","R40 NELSPRUIT ROAD, BARBERTON, BARBERTON, 1300","Siswati",1,1,1]
[24,"EKUCATHUZENI PRIMARY SCHOOL","1813 EXT. 3  SPEARVILLE, BARBERTON, UMJINDI, 1300","Siswati",3,3,3]
[25,"EKUPHUMULENI PRIMARY SCHOOL","STAND NO.51, SCHOEMANSDAL, MALELANE, 1320","Siswati",2,2,2]
[26,"EKWENZENI PRIMARY SCHOOL","stand no 315, , steenbok, 1347","Siswati",2,2,2]
[27,"EMATHOLENI PRIMARY SCHOOL","STAND NO. 8, BLOCK B TRUST, KWASIBHEJANE, 1357","Siswati",3,3,3]
[28,"EMBONISWENI PRIMARY SCHOOL","STAND 632 MBONISWENI TRUST, KABOKWENI, WHITE RIVER, 1240","Siswati",2,2,2]
[29,"EMTFONJENI PRIMARY SCHOOL","1198, , KABOKWENI, 1245","Siswati",2,2,2]
[30,"EMTFUNTINI PRIMARY SCHOOL","STAND NUMBER 189, BHEKISISA SECTION, LANGELOOP TRUST, 1337","Siswati",3,3,3]
[31,"ENDLUNKULU PRIMARY SCHOOL","1103, MGANDUZWENI TRUST, WHITE RIVER, 1240","Siswati",1,1,1]
[32,"ENKHOKHOKHWENI PRIMARY SCHOOL","STAND NO. 1218 MAFAMBISA, HLAU-HLAU, KABOKWENI, 1245","Siswati",3,3,3]
[33,"ENTABAMHLOPHE COMBINED SCHOOL","Land 123, Elandshoek, NELSPRUIT, 1208","Siswati",2,1]
[34,"ENTOKOZWENI PRIMARY SCHOOL","STAND NUMBER 1210, KABOKWENI, KABOKWENI, 1245","Siswati",2,2,2]
[35,"ENZANI PRIMARY SCHOOL","STAND NO. 609 \"A\", MATSULU, NELSPRUIT, 1203","Siswati",2,2,2]
[36,"ETIMBONDVWENI COMBINED SCHOOL","STAND NO. 192, , MANDULO , 1348","Siswati",2,2,2]
[37,"EVIMBILANGA PRIMARY SCHOOL","298 , NAAS, KAMAQHEKEZA, 1346","Siswati",4,4,4]
[38,"FAKAZI PRIMARY SCHOOL","STAND NO 1122, , BOSCHFONTEIN, 1335","Siswati",3,4,2]
[39,"FUNINDLELA PRIMARY SCHOOL","Masakhane Drive Street Stand No 242 , Matsulu , Nelspruit , 1203","Siswati",4,3,3]
[40,"GEBHUNDLOVU PRIMARY SCHOOL","STAND NO 1463, STEENBOK, KOMATIPOORT, 1347","Siswati",3,3,2]
[41,"GEORGE MHAULE PRIMARY SCHOOL","STAND NO. 01, NUMBI TRUST, HAZYVIEW, 1242","Siswati",1,2,2]
[42,"GLENTHORPE PRIMARY SCHOOL","Sappi Glenthorpe, Glenthorpe Village, Barberton, 1300","Siswati",1,1,1]
[43,"GOBA PRIMARY SCHOOL","stand no 11, goba trust , komatipoort , 1341","Siswati",1,1,1]
[44,"GOGOMHLANGA PRIMARY SCHOOL","STAND NO 236, , KOMATIPOORT, 1340","Siswati",2,2,1]
[45,"GUTJWA PRIMARY SCHOOL","STAND NO 1MAKHAHLELA, MAKHAHLELA, WHITE RIVER, 1245","Siswati",2,2,2]
[46,"HOECHST PRIMARY SCHOOL","STAND NO. 627, PHOSAVILLE, SIDLAMAFA, 1332","Siswati",4,4,4]
[47,"HOYI PRIMARY SCHOOL","STAND NO. 094C, HOYI TRUST, KOMATIPOORT, 1341","Siswati",2,2,2]
[48,"IFALETHU PRIMARY SCHOOL","Stand no 1786, Nyongane Trust, Hazyview, 1242","Siswati",3,3,3]
[49,"IMPUMELELO PRIMARY SCHOOL","MDLANKOMO TRUST, , Kabokweni, 1245","Siswati",1,1,1]
[50,"INGWENYAMA PRIMARY SCHOOL","STAND NO. 601, BLOCK C TRUST, SIBUKENI , KOMATIPOORT, 1340","Siswati",3,3,3]
[51,"INJABULO PRIMARY SCHOOL","STAND NO D257, MASIBEKELA (MTHATHA), KOMATIPOORT, 1342","Siswati",2,2,2]
[52,"INKHAMBENI PRIMARY SCHOOL","SAND RIVER TRUST, STAND NO 262, HAZYVIEW, 1242","Siswati",1,1,1]
[53,"INKHANYETI PRIMARY SCHOOL","STAND NUMBER 561, MGANDUZWENI TRUST, WHITE RIVER, 1240","Siswati",2,2,2]
[54,"INTFUTFUKO PRIMARY SCHOOL","STAND NO.1312, TB SECTION, SHONGWE MISSION, 1331","Siswati",3,3,3]
[55,"JABULANI PRIMARY SCHOOL","133, Spelanyane, Kabokweni, 1245","Siswati",1,1,1]
[56,"JOHN MDLULI PRIMARY SCHOOL","2 MASCOT STREET, MATAFFIN, NELSPRUIT, 1200","Siswati",4,4,4]
[57,"KAAPVALLEI PRIMARY SCHOOL","SHEBA MINE, BARBERTON, BARBERTON, 1300","Siswati",1,1,1]
[58,"KAMHLUSHWA PRIMARY SCHOOL","S/R 15/924, PHOSAVILLE EXTENSION 2, kamhlushwa, 1332","Siswati",4,4,4]
[59,"KHANYISILE PRIMARY SCHOOL","KEMPSTONE, EMJINDINI TRUST, BARBERTON, 1300","Siswati",2,2,2]
[60,"KHOMBINDLELA PRIMARY SCHOOL","STAND NO T011, MAHUSHU, HAZYVIEW, 1242","Siswati",4,3,3]
[61,"KHULA-MLAMBO PRIMARY SCHOOL","STAND 127 KABHUNYA , MBUZINI, KOMATIPOORT, 1343","Siswati",2,2,1]
[62,"KHULA-MSHIKA PRIMARY SCHOOL","Stand No 1, Block B Trust, Kwa-Lugedlane, 1341","Siswati",3,3,3]
[63,"KHULANI PRIMARY SCHOOL","135 JERUSALEMA TRUST, WHITE RIVER, WHITE RIVER, 1240","Siswati",1,1,1]
[64,"KHULUMANI PRIMARY SCHOOL","STAND NO 151 , TEKATAKHO, KABOKWENI, 1245","Siswati",4,3,3]
[65,"KOBI PRIMARY SCHOOL","STAND NO 496, , MZINTI TRUST, 1352","Siswati",1,1,6]
[66,"KUSILE PRIMARY SCHOOL","Stand no: 200, Phameni Trust, KaBokweni, White River, 1245","Siswati",1,1,1]
[{"$f":"A410+1","v":67},"KWA-JELUSA PRIMARY SCHOOL","STAND NO 76, PHIVA, MALELANE, 1358","Siswati",2,2,1]
[68,"KWALODAKADA PRIMARY SCHOOL","NTUNDA, , MALELANE, 1320","Siswati",2,2,3]
[69,"LEGOGOTO PRIMARY SCHOOL","STAND NO 241 JERUSALEM , WHITERIVER, WHITE RIVER, 1240","Siswati",3,2,2]
[70,"LEKAZI PRIMARY SCHOOL","STAND NO 4822, LIPHAYINI STREET, KANYAMAZANE, KANYAMAZANE, 1214","Siswati",7,8,8]
[71,"LEPESI PRIMARY SCHOOL","STAND NUMBER 14, LUPHISA, LUPHISA, 1217","Siswati",1,2,2]
[72,"LETSAKUTFULA PRIMARY SCHOOL","STAND NO1708 c, Matsulu, MATSULU , 1203","Siswati",2,2,2]
[73,"LIGUGULETFU PRIMARY SCHOOL","STAND NO. 83, , MALELANE, 1320","Siswati",3,2,3]
[74,"LIKHWETI PRIMARY SCHOOL","Lekazi, KANYAMAZANE, Nelspruit, 1200","Siswati",4,5,4]
[75,"LINDANI PRIMARY SCHOOL","P.O. BOX 730, MOYEN SECTION, HAZYVIEW , 1242","Siswati",1,1,1]
[76,"LIVELETHU PRIMARY SCHOOL","Makoko Trust, , White River, 1240","Siswati",1,1,1]
[77,"LOMATIDRAAI PRIMARY SCHOOL","59 LANGELOOP TRUST, , MALELANE, 1337","Siswati",3,2,2]
[78,"LOTI PRIMARY SCHOOL","STAND 734, SHONGWE MISSION, MALELANE, 1320","Siswati",2,3,2]
[79,"LUGEDLANE PRIMARY SCHOOL","Stand 218, Mangweni Trust, Kwalugedlane, 1341","Siswati",4,4,4]
[80,"LUNDANDA PRIMARY SCHOOL","Stand No. 273, Mahushu, Hazyview, 1242","Siswati",4,4,6]
[81,"LUTHANGO PRIMARY SCHOOL","STAND NO32B, MANANGA, MANANGA, 1354","Siswati",2,2,2]
[82,"LUVOLWETFU PRIMARY SCHOOL","Stand No 679, Kamhlushwa, Sidlamafa, 1332","Siswati",4,3,4]
[83,"LWALENG PRIMARY SCHOOL","Spioenkop Road, , White River, 1240","Siswati",3,3,2]
[84,"MAGCEKENI PRIMARY SCHOOL","533 MZINTI, , MZINTI, 1352","Siswati",4,4,4]
[85,"MAGEWU PRIMARY SCHOOL","Stand no. 7, Block C, Naas, 1346","Siswati",4,4,4]
[86,"MAGOGENI PRIMARY SCHOOL","MAGOGENI STREET STAND NO. 700, NKOMAZI, MAGOGENI, 1334","Siswati",3,2,2]
[87,"MAGUBHA COMBINED SCHOOL","STAND NO:  757 \"A\", DRIEKOPPIES VILLAGE, SHONGWE MISSION, 1331","Siswati",1,2,2]
[88,"MAGUDU COMBINED SCHOOL","Magudu Trust  Stand no:101, SHONGWE MISSION, Malelane, 1331","Siswati",3,2,2]
[89,"MAJEMBENI PRIMARY SCHOOL","005E , KOMATIPOORT, HOYI TRUST , 1348","Siswati",1,1,1]
[90,"MAJIKA PRIMARY SCHOOL","STAND NO 260D, SANDRIVER TRUST, HAZYVIEW, 1242","Siswati",5,4,4]
[91,"MAKHAHLELA PRIMARY SCHOOL","STAND A1, KABOKWENI, Nelspruit, 1245","Siswati",1,1,1]
[92,"MAKOKO PRIMARY SCHOOL","05 MAKOKO TRUST, , MAKOKO, 1251","Siswati",1,1,1]
[93,"MALEKUTU PRIMARY SCHOOL","STAND 29, MALEKUTU TRUST, KABOKWENI, 1245","Siswati",4,4,3]
[94,"MAMINZA PRIMARY SCHOOL","014127, MSOGWABA, MSOGWABA, 1215","Siswati",5,6,5]
[95,"MANZINI PRIMARY SCHOOL","CHO-CHO-CHO TRUST, STAND NO. 99, WHITE RIVER, 1240","Siswati",1,1,2]
[96,"MAPHAKAMA PRIMARY SCHOOL","STAND NO 900, NKOHLAKALO TRUST, KABOKWENI, 1245","Siswati",4,3,3]
[97,"MAQAMELA PRIMARY SCHOOL","STAND NO. 124A, CLAU CLAU, KABOKWENI, 1245","Siswati",3,2,3]
[98,"MAQHEKEZA PRIMARY SCHOOL","Stand  No  53 B, Ka-maqhekeza, Ka-Maqhekeza, 1346","Siswati",4,3,3]
[99,"MASIBEKELA PRIMARY SCHOOL","STAND NO 356C , MASIBEKELA TRUST, KOMATIPOORT, 1342","Siswati",2,2,2]
[100,"MASIBONISANE PRIMARY SCHOOL","STAND NO 638, KASIBHEJANE, SUBURB, 1357","Siswati",2,2,2]
[101,"MASIHAMBISANE PRIMARY SCHOOL","umoya street 2213, kanyamazane, nelspruit, 1214","Siswati",1,1,1]
[102,"MASOYI PRIMARY SCHOOL","69 SWALALA TRUST, WHITE RIVER, WHITE-RIVER, 1240","Siswati",2,2,2]
[103,"MATJENI PRIMARY SCHOOL","STAND NO 249, , KASIBHEJANE, 1357","Siswati",4,3,3]
[104,"MATSAFENI PRIMARY SCHOOL","STAND 149, KAMHLUSHWA, MALELANE, 1332","Siswati",3,3,3]
[105,"MATSAMO PRIMARY SCHOOL","STAND NO 1634, SHONGWE MISSION, MALELANE, 1331","Siswati",3,3,3]
[106,"MATSULU PRIMARY SCHOOL","Stand 1572 a , Govan mbeki street, MATSULU, 1203","Siswati",2,2,1]
[107,"MAWEWE PRIMARY SCHOOL","STAND NO. 44B , GEMA SECTION , MGOBODI TRUST, 1344","Siswati",2,2,2]
[108,"MBANGWANE PRIMARY SCHOOL","140, , Mbangwane, 1355","Siswati",2,2,2]
[109,"MBAZIMA PRIMARY SCHOOL","stand no. 755 Block c, , KWALUGEDLANE, 1341","Siswati",5,4,5]
[110,"MBOKODO PRIMARY SCHOOL","STAND NO. 017096, MSOGWABA, KANYAMAZANE, 1215","Siswati",2,2,2]
[111,"MBOMBO PRIMARY SCHOOL","STAND NO 260, DLUDLUMA, KWALUGEDLANE, 1341","Siswati",1,1,1]
[112,"MBONGENI PRIMARY SCHOOL","STAND 13S, DAANTJIE TRUST, KANYAMAZANE, 1214","Siswati",4,3,3]
[113,"MBUZINI PRIMARY SCHOOL","STAND NO 74C, BEHIND MBUZINI CLINIC, KOMATIPOORT, 1341","Siswati",2,2,2]
[114,"MC ZITHA PRIMARY SCHOOL","stand no: 20, , MASIBEKELA, 1342","Siswati",2,1,2]
[115,"MDLADLA PRIMARY SCHOOL","STAND NO 52, VLAKBULT TRUST , MALELANE, 1320","Siswati",3,3,3]
[116,"MDUMISENI PRIMARY SCHOOL","1000 SWALALA TRUST, SWALALA TRUST, WHITE RIVER, 1240","Siswati",2,2,2]
[117,"MDZIMBA PRIMARY SCHOOL","STAND NO. 316, PHOLA TRUST, HAZYVIEW, 1242","Siswati",3,3,3]
[118,"MGANDUZWENI PRIMARY SCHOOL","STAND NO. 554, MGANDUZWENI TRUST, WHITE RIVER, 1240","Siswati",2,2,1]
[119,"MGCOBANENI PRIMARY SCHOOL","MGCOBANENI TRUST, , WHITE RIVER, 1240","Siswati",2,2,2]
[120,"MGOBODI PRIMARY SCHOOL","SITE NO: 1132, MGOBODI, MALELANE, 1320","Siswati",3,2,2]
[121,"MGUBHO COMBINED SCHOOL","1164, BLOCK C, KOMATIPOORT, 1346","Siswati",2,1,1]
[122,"MGWENYANE PRIMARY SCHOOL","STAND NO. 1206, KABOKWENI, KABOKWENI, 1245","Siswati",1,1,1]
[123,"MHLABA COMBINED SCHOOL","245  STAND NO, BOSCHFONTEIN TRUST, Malelane, 1331","Siswati",1,1,1]
[124,"MHLATI PRIMARY SCHOOL","mhlathi farm, malelane, malelane, 1320","Siswati",1,1,1]
[125,"MHLOSHENI PRIMARY SCHOOL","STAND NO.1301, KHANDLELA SECTION, MAGOGENI, 1334","Siswati",2,2,2]
[126,"MJEJANE PRIMARY SCHOOL","STAND NO 1774, MANGWENI, KOMATIPOORT, 1341","Siswati",2,2,2]
[127,"MLILO PRIMARY SCHOOL","ERMELO TRUST, 193, KABOKWENI, 1245","Siswati",2,2,2]
[128,"MPAKENI PRIMARY SCHOOL","STAND NO.4, MPAKENI TRUST, NELSPRUIT, 1216","Siswati",1,1,1]
[129,"MPHOTI PRIMARY SCHOOL","STAND NO. 1017, KWALUGEDLANE, NELSPRUIT, 1341","Siswati",4,3,3]
[130,"MPUMELELO PRIMARY SCHOOL","STAND NO 50, MIDDELPLAAS TRUST, MALELANE, 1320","Siswati",1,1,1]
[{"$f":"A474+1","v":131},"MPUNZANA PRIMARY SCHOOL","Shabalala Trust , Stand No 402A, Trust , 1242","Siswati",1,2,2]
[132,"MSHENGU INCLUSIVE SCHOOL","STAND 179, HOYI , KOMATIPOORT, 1348","Siswati",1,1,1]
[133,"MSOGWABA PRIMARY SCHOOL","STAND NO 1268B, MSOGWABA, NELSPRUIT, 1215","Siswati",5,4,4]
[134,"MTFOPHI PRIMARY SCHOOL","STAND NO 24/5, , DAANTJIE,","Siswati",1,1,1]
[135,"MTHAYIZA PRIMARY SCHOOL","STAND NO 1732, , KABOKWENI, 1245","Siswati",3,3,3]
[136,"MTHUNZI PRIMARY SCHOOL","STAND 611, NEWSKOM TRUST, KABOKWENI, 1245","Siswati",2,3,2]
[137,"MTIMBA PRIMARY SCHOOL","STAND NO T 10, NUMBI TRUST, TOWN, 1242","Siswati",3,3,4]
[138,"MVANGATINI PRIMARY SCHOOL","STAND NO.01 MVANGATINI TRUST, KA-BOKWENI, KA-BOKWENI, 1245","Siswati",1,1,1]
[139,"MZINTI PRIMARY SCHOOL","STAND NO. 86, MZINTI, MALELANE, 1352","Siswati",3,3,3]
[140,"NDINDANE COMBINED SCHOOL","STAND NO.1, BLOCK A TRUST, KWALUGEDLANE, 1341","Siswati",1,1,1]
[141,"NDINDINDI PRIMARY SCHOOL","Stand No 202, Imbuzini, IMBUZINI, 1343","Siswati",1,1,1]
[142,"NDLAPHU PRIMARY SCHOOL","STAND NO 562 B, SIBUYILE, KANYAMAZANE, 1214","Siswati",1,1,1]
[143,"NDLAVELA PRIMARY SCHOOL","STAND NO. 102 , SIHLANG 5, MALALANE , 1349","Siswati",2,2,2]
[144,"NDLEMANE PRIMARY SCHOOL","BOSCHFONTEIN STAND NO: 03, MBAMBISO, MALELANE, 1335","Siswati",4,4,3]
[145,"NGWANE PRIMARY SCHOOL","NO 1 New clare, BARBERTON, Barberton, 1300","Siswati",1,1,1]
[146,"NSIZWANE PRIMARY SCHOOL","STAND N. 191, KHOMBASO, KOMATIPOORT, 1341","Siswati",1,1,1]
[147,"NYALUNGU PRIMARY SCHOOL","STAND NO. 38, CLAU-CLAU TRUST, KABOKWENI, 1245","Siswati",4,4,4]
[148,"PHAKAMANI PRIMARY SCHOOL","stand no. 397, middelplaas , shongwe mission , 1331","Siswati",4,3,4]
[149,"PHAKANI PRIMARY SCHOOL","STAND NO. 201, PHAKANI TRUST, KABOKWENI, 1245","Siswati",2,3,3]
[150,"PHAMBANISA PRIMARY","842, MANGWENI TRUST, MALELANE, 1320","Siswati",3,3,3]
[151,"PHINDELA PRIMARY SCHOOL","STAND NO.67, SIKHWAHLANE, KWALUGEDLANE, 1341","Siswati",2,2,2]
[152,"PHIVA PRIMARY SCHOOL","STAND NO.65B, PHIVA TRUST, MALELANE, 1320","Siswati",3,3,2]
[153,"PHOLANI PRIMARY SCHOOL","S12, GOBOZA, DAANTJIE TRUST, 1216","Siswati",1,1,1]
[154,"PHUMALANGA PRIMARY SCHOOL","STAND 672 MATSULU A, Nelspruit, MATSULU, 1203","Siswati",1,1,1]
[155,"Prince HR Nkosi ",null,"Siswati",2,1,3]
[156,"PROF S S REPINGA PRIMARY SCHOOL","STAND NO 1160, KASIBHEJANE , BLOCK B, 1357","Siswati",2,2,2]
[157,"S.A. MAKAM PRIMARY SCHOOL","EMJINDINI TRUST, , BARBERTON, 1300","Siswati",3,3,3]
[158,"SABATHA PRIMARY SCHOOL","Stand 109, Jeppes reef, Shongwe Mission, 1331","Siswati",4,4,3]
[159,"SALUBINDZA PRIMARY SCHOOL","STAND NO. 20, SALUBINDZA TRUST, HAZYVIEW, 1242","Siswati",2,3,2]
[160,"SAMBO PRIMARY SCHOOL","STAND NO 2298, , STEENBOK, 1347","Siswati",1,1,1]
[161,"SANDZILE PRIMARY SCHOOL","Stand no 1197, Kabokweni, Kabokweni, 1245","Siswati",4,4,4]
[162,"S'BONGILE PRIMARY SCHOOL","93 YOUTH CENTRE , Youth Centre, Matsulu, 1203","Siswati",2,2,2]
[163,"SCHOEMANSDAL SCHOOL","STAND NO: 1633, SCHOEMANSDAL A, SHONGWE MISSION, 1331","Siswati",4,3,3]
[164,"SCHULZENDAL PRIMARY SCHOOL","18, SCHULZENDAL, TRUST, 1336","Siswati",3,2,3]
[165,"SEHLULILE PRIMARY SCHOOL","STAND NO. 1286, MATSULU, NELSPRUIT, 1203","Siswati",3,3,3]
[166,"SEKUSILE PRIMARY SCHOOL","STAND  NO 109B, KAMAQHEKEZA, KAMAQHEKEZA, 1346","Siswati",6,2,6]
[167,"SHAYAZA PRIMARY SCHOOL","STAND NO: 274, , SIBANGE TRUST, 1344","Siswati",1,2,2]
[168,"SHAYINDLOVU PRIMARY SCHOOL","STAND NO 3B, BHACA SECTION, KWALUGEDLANE, 1343","Siswati",2,2,2]
[169,"SHISHILA PRIMARY SCHOOL","SITE B5, MSOGWABA, NELSPRUIT, 1215","Siswati",4,3,3]
[170,"SHONGWE BOARDING SCHOOL","STAND NO. S/R12/1850, MIDDLEPLAAS, MALELANE, 1331","Siswati",1,1,1]
[171,"SIBAMBISENE PRIMARY SCHOOL","STAND NO 4, DAANTJIE TRUST , KANYAMAZANE, 1216","Siswati",3,2,3]
[172,"SIBOSHWA PRIMARY SCHOOL","STAND NO. 6, BLOCK 'C', KOMATIPOORT , 1340","Siswati",2,2,2]
[173,"SIBUYILE PRIMARY SCHOOL","STAND NO 1024, SIBUYILE DAANTJIE TRUST, MBOMBELA, 1216","Siswati",3,2,3]
[174,"SICELALWATI PRIMARY SCHOOL","STAND NO 818, TEKWANE NORTH, TEKWANE NORTH, 1216","Siswati",2,2,2]
[175,"SIDLEMU PRIMARY SCHOOL","STAND NO 1894, MANGWENI TRUST, KOMATIPOORT, 1341","Siswati",3,2,2]
[176,"SIDLOKO PRIMARY SCHOOL","STAND NO: 330, IMBUZINI, KOMATIPOORT, 1343","Siswati",1,1,1]
[177,"SIFUNDZEKHAYA PRIMARY SCHOOL","Stand no:1171, Bongane 'B', Malelane, 1333","Siswati",3,2,2]
[178,"SIFUNINDLELA PRIMARY SCHOOL","1008, SIFUNINDLELA, KABOKWENI, 1245","Siswati",4,4,2]
[179,"SIHLANGU PRIMARY SCHOOL","STAND 400 B, SIHLANGU, KOMATIPOORT, 1341","Siswati",2,2,2]
[180,"SIJABULILE PRIMARY SCHOOL","Plot 37 , STERKSPRUIT, NELSPRUIT, 1200","Siswati",1,1,1]
[181,"SIKHUTSELE PRIMARY SCHOOL","4091 Extension 10 Phase two, BARBERTON, UMJINDI, 1300","Siswati",4,4,2]
[182,"SINDZAWONYE PRIMARY SCHOOL","STAND NO C702, msogwaba , MSOGWABA , 1215","Siswati",5,3,3]
[183,"SINQOBILE PRIMARY SCHOOL","LOMSHIYO TRUST, , LOUWSCREEK, 1302","Siswati",1,1,1]
[184,"SISINI PRIMARY SCHOOL","STAND NO 948, , JEPPES REEF, 1331","Siswati",2,2,2]
[185,"SIYAFUNDZA PRIMARY SCHOOL","STAND NO. 151, SWALALA TRUST, WHITE RIVER, 1240","Siswati",7,7,6]
[186,"SIYAKHULA PRIMARY SCHOOL","162, Daantijie Trust, Nelspruit, 1200","Siswati",2,3,3]
[187,"SIYAMUKELA PRIMARY SCHOOL","STAND NO. 330, SHABALALA, HAZYVIEW, 1242","Siswati",7,7,6]
[188,"SIYANCOBA PRIMARY SCHOOL","STAND  NO 01 PHELANDABA, , WHITE  RIVER , 1240","Siswati",1,1,1]
[189,"SIZIMISELE PRIMARY SCHOOL","43 VUKUZENZELE , MASIBEKELA 1341, MALELANE, 1341","Siswati",1,1,1]
[190,"SOGASA PRIMARY SCHOOL","STAND NO 252 EMOYENI SECTION, MAWEWE TRIBAL AUTHORITY , MAZOLWANDLE , 1344","Siswati",2,2,2]
[191,"SOMCUBA PRIMARY SCHOOL","STAND NO.91, MSOGWABA TRUST, NELSPRUIT, 1215","Siswati",4,4,4]
[192,"SONDLOVU PRIMARY SCHOOL","Stand no. 302c, Buffelspruit, Shongwe mission, 1331","Siswati",3,3,3]
[193,"SOPHUNGANE COMBINED SCHOOL","STAND NO. 315 E, HOYI TRUST, KOMATIPOORT, 1348","Siswati",2,2,3]
[194,"SUKUMANI PRIMARY SCHOOL","Stand No. 848 , E-Moyeni section, Matsulu 'B', 1203","Siswati",5,5,5]
[{"$f":"A538+1","v":195},"TAKHELENI PRIMARY SCHOOL","STAND N0 900, MATSULU, MBOMBELA, 1203","Siswati",4,3,4]
[196,"TEKWANE PRIMARY SCHOOL","STAND 513 MATTHEW PHOSA DRIVE, TEKWANE SOUTH, TEKWANE SOUTH, 1214","Siswati",2,2,3]
[197,"TENTELENI PRIMARY SCHOOL","6290, Kanyamazane , Nelspruit , 1200","Siswati",4,3,3]
[198,"TFOLINHLANHLA PRIMARY SCHOOL","SHABALALA  Trust  T10, STAND NO. T10, HAZYVIEW, 1242","Siswati",4,5,3]
[199,"THAMBOKHULU PRIMARY SCHOOL","Stand no. 46, Thambokhulu, Thambokhulu , 1341","Siswati",1,1,1]
[200,"THANDA PRIMARY SCHOOL","43 DINDELA VILLAGE, HECTORSPRUIT, HECTORSPRUIT, 1330","Siswati",2,2,2]
[201,"THANDULWAZI PRIMARY SCHOOL","Stand No 2211 (B), , KaNyamazane, 1214","Siswati",1,1,1]
[202,"THULA PRIMARY SCHOOL","Stand N0 Ao1, Ngwenyeni Trust , Komatipoort, 1346","Siswati",3,3,3]
[203,"TIBONELENI PRIMARY SCHOOL","STAND NO. 3S, DAANTJIE TRUST, SIBUYILE, 1216","Siswati",5,4,4]
[204,"TIGA PRIMARY SCHOOL","5s Daantjie trust, , Kanyamazane, 1216","Siswati",2,2,1]
[205,"TINDZALENI PRIMARY SCHOOL","stand no 1330, , uthokozane, 1346","Siswati",3,3,2]
[206,"TIPHEMBELENI PRIMARY SCHOOL","STAND NO. 6337, KANYAMAZANE, LEKAZI, 1214","Siswati",2,2,2]
[207,"TONGA VIEW PRIMARY SCHOOL","STAND 435 OPPOSITE TONGA HOSPITAL , TONGA, KWA-LUGEDLANE, 1341","Siswati",2,3,3]
[208,"TSANDZANANI PRIMARY SCHOOL","STAND NO. 671, , MATSULU A, 1203","Siswati",4,4,4]
[209,"TSEMBALETFU PRIMARY SCHOOL","STAND NO 60, KHUMBULA TRUST, KABOKWENI, 1245","Siswati",3,3,4]
[210,"TSEMBANANI PRIMARY SCHOOL","Stand No. 1000, , Manzini Trust, 1240","Siswati",2,2,1]
[211,"UMPOPOLI PRIMARY SCHOOL","698  Stand no, Nkohlakalo Trust, Kabokweni, 1245","Siswati",2,2,2]
[212,"VUKASAMBE PRIMARY SCHOOL","STAND NO. 02, MSOGWABA, NELSPRUIT, 1215","Siswati",4,4,4]
[213,"VULAMASANGO PRIMARY SCHOOL","STAND NO.5124, KANYAMAZANE, NELSPRUIT, 1214","Siswati",4,5,4]
[214,"VULEMEHLO  SCHOOL","33931, CLAU CLAU TRUST, NELSPRUIT, 1245","Siswati",1,1,1]
[215,"VUTSELANI PRIMARY SCHOOL","STAND NO 33, MALEKUTU TRUST , KABOKWENI, 1245","Siswati",2,2,2]
[216,"YEDWA PRIMARY SCHOOL","STAND NO 010411, Msogwaba, MSOGWABA, 1215","Siswati",2,1,1]
[217,"Yinhkekanto Primary school ",null,"Siswati",2,2,2]
[218,"ZAKHELENI PRIMARY SCHOOL","STAND NO 296, MAHUSHU TRUST, HAZYVIEW, 1242","Siswati",2,2,2]
[219,"ZAMANI PRIMARY SCHOOL","50 IVORY TRUST, , WHITE RIVER, 1240","Siswati",3,2,2]
[220,"ZAMOKUHLE PRIMARY SCHOOL","STAND NO 820 BLOCK C TRUST, P.O. JABULANE SECTION, KOMATIPOORT, 1340","Siswati",3,2,3]
[221,"ZANDILE PRIMARY SCHOOL","STAND NO 766, SHONGWE MISSION, BUFFELSPRUIT, 1331","Siswati",2,2,2]
[222,"ZIBOKWANE PRIMARY SCHOOL","STAND NO 181, BLOCK \"A\", KWALUGEDLANE, 1341","Siswati",4,5,5]
[223,"ZITHULELE PRIMARY SCHOOL","STAND NO: 1636, SHONGWE MISSION, SCHOEMANSDAL TRUST , 1331","Siswati",1,2,2]
[224,"ZWELISHA PRIMARY SCHOOL","STAND NO. 7017/B, , KABOKWENI, 45","Siswati",3,3,3]
[225,"ZWIDE PRIMARY SCHOOL","STAND NO. 440, BOSCHFONTEIN, MALELANE, 1320","Siswati",4,4,3]
["TOTAL AMOUNT OF TEACHERS PER GRADE",{"$nulls":3},{"$f":"SUM(E345:E569)","v":569},{"$f":"SUM(F345:F569)","v":541},{"$f":"SUM(G345:G569)","v":538}]